[Event "FIDE World School-ch G-17 2025"]
[Site "Vrnjacka Banja"]
[Date "2025.03.21"]
[Round "2.6"]
[White "Kusakina, Uliana"]
[Black "Nauanova Zhaniya"]
[Result "1-0"]
[Annotator "NA RC"]
[ECO "C02"]
[WhiteElo "1855"]
[BlackElo "1905"]
[PlyCount "125"]
[EventDate "2025.03.19"]
[EventType "swiss"]
[EventCountry "SRB"]
[SourceTitle "playchess.com"]
[Source "ChessBase"]
[SourceQuality "1"]
[TimeControl "5400+30"]

1. e4 {[%emt 0:00:03]} e6 {[%emt 0:00:08]} 2. d4 {[%emt 0:00:09]} d5 {[%emt 0:00:03]} 3. e5 {[%emt 0:00:07]} c5 {[%emt 0:00:03]} 4. c3 {[%emt 0:00:19]} Nc6 {[%emt 0:00:05]} 5. Nf3 {[%emt 0:00:16]} Qb6 {[%emt 0:00:12]} 6. Bd3 {[%emt 0:00:21]} cxd4 {[%emt 0:00:50]} 7. O-O {[%emt 0:00:20]} Bd7 {[%emt 0:04:38]} 8. Re1 {[%emt 0:00:51]} Rc8 {[%emt 0:06:05]} 9. Nbd2 {[%emt 0:00:51]} dxc3 {[%emt 0:08:59]} 10. bxc3 {[%emt 0:00:18]} Nge7 {[%emt 0:08:12]} 11. c4 {[%emt 0:15:39]} Na5 {[%emt 0:07:38]} 12. Ba3 {[%emt 0:16:00]} dxc4 {[%emt 0:09:03]} 13. Ne4 {[%emt 0:02:48]} Nf5 {[%emt 0:22:31]} 14. Bxf8 {[%emt 0:03:02]} Rxf8 {[%emt 0:02:50]} 15. Bc2 {[%emt 0:10:38]} Bc6 {[%emt 0:04:00]} 16. Ba4 {[%emt 0:04:56]} Ke7 {[%emt 0:05:25]} 17. Bxc6 {[%emt 0:00:40]} Nxc6 {[%emt 0:02:31]} 18. Rb1 {[%emt 0:02:43]} Qc7 {[%emt 0:00:36]} 19. Qc1 {[%emt 0:12:28]} Rfd8 {[%emt 0:02:36]} 20. Qa3+ {[%emt 0:04:01]} Ke8 {[%emt 0:00:07]} 21. g4 {[%emt 0:13:27]} Nfd4 {[%emt 0:00:08]} 22. Nd6+ {[%emt 0:01:38]} Rxd6 {[%emt 0:01:03]} 23. exd6 {[%emt 0:00:12]} Qd7 {[%emt 0:03:46]} 24. Red1 {[%emt 0:04:18]} e5 {[%emt 0:04:49]} 25. Nxe5 {[%emt 0:01:09]} Ne2+ {[%emt 0:00:04]} 26. Kf1 {[%emt 0:00:12]} Nxe5 {[%emt 0:00:07]} 27. Qe3 {[%emt 0:01:59]} f6 {[%emt 0:01:22]} 28. Qxe2 {[%emt 0:00:51]} Kf8 {[%emt 0:01:11]} 29. Qe4 {[%emt 0:02:27]} b6 {[%emt 0:01:31]} 30. h3 {[%emt 0:00:30]} Kg8 {[%emt 0:01:06]} 31. f4 {[%emt 0:00:51]} Nd3 {[%emt 0:01:39]} 32. Qd5+ {[%emt 0:01:04]} Kf8 {[%emt 0:00:28]} 33. f5 {[%emt 0:00:33]} Rc6 {[%emt 0:00:39]} 34. Rd2 {[%emt 0:00:36]} Qxd6 {[%emt 0:00:46]} 35. Qe4 {[%emt 0:00:52]} Rc8 {[%emt 0:01:09]} 36. Re1 {[%emt 0:00:38]} Qc7 {[%emt 0:00:39]} 37. Re3 {[%emt 0:00:20]} Ne5 {[%emt 0:01:01]} 38. g5 {[%emt 0:00:29]} c3 {[%emt 0:00:39]} 39. Rc2 {[%emt 0:00:11]} Qc4+ {[%emt 0:00:11]} 40. Qxc4 {[%emt 0:00:14]} Nxc4 {[%emt 0:00:05]} 41. Rexc3 {[%emt 0:00:31]} b5 {[%emt 0:00:26]} 42. gxf6 {[%emt 0:00:20]} gxf6 {[%emt 0:00:04]} 43. Kf2 {[%emt 0:00:24]} Rc5 {[%emt 0:00:36]} 44. Rf3 {[%emt 0:00:14]} Rd5 {[%emt 0:00:46]} 45. Kg2 {[%emt 0:01:08]} Re5 {[%emt 0:00:43]} 46. Rcf2 {[%emt 0:00:13]} Ke7 {[%emt 0:00:44]} 47. Kg3 {[%emt 0:00:13]} Nd6 {[%emt 0:00:12]} 48. Kg4 {[%emt 0:00:37]} Nc4 {[%emt 0:02:04]} 49. Kh5 {[%emt 0:00:28]} Re4 {[%emt 0:00:00]} 50. Rf4 {[%emt 0:00:20]} Re3 {[%emt 0:00:00]} 51. h4 {[%emt 0:00:34]} Ne5 {[%emt 0:00:23]} 52. Rc2 {[%emt 0:00:20]} Nc4 {[%emt 0:00:50]} 53. Kh6 {[%emt 0:00:36]} Kd6 {[%emt 0:00:11]} 54. Kxh7 {[%emt 0:00:14]} Ke5 {[%emt 0:00:06]} 55. Rff2 {[%emt 0:00:35]} Rh3 {[%emt 0:01:20]} 56. Rh2 {[%emt 0:00:26]} Rg3 {[%emt 0:00:20]} 57. Rcg2 {[%emt 0:00:52]} Rd3 {[%emt 0:00:13]} 58. Kg6 {[%emt 0:00:15]} Rf3 {[%emt 0:01:02]} 59. Re2+ {[%emt 0:00:45]} Kd4 {[%emt 0:00:20]} 60. Kxf6 {[%emt 0:00:46]} Ne3 {[%emt 0:00:21]} 61. Rxe3 {[%emt 0:00:23]} Kxe3 {[%emt 0:00:22]} 62. h5 {[%emt 0:00:12]} Ke4 {[%emt 0:00:33]} 63. Rh4+ {[%emt 0:00:05]} 1-0